[Event "Fagernes Chess GM-Swiss 2024"]
[Site "Fagernes"]
[Date "2024.03.24"]
[Round "1.28"]
[White "Celik, Hasan Huseyin"]
[Black "Amundsen, Ask"]
[Result "1-0"]
[ECO "A67"]
[WhiteElo "2417"]
[BlackElo "2069"]
[Annotator "TA"]
[PlyCount "77"]
[EventDate "2024.03.25"]
[EventType "swiss"]
[EventCountry "NOR"]
[SourceTitle "playchess.com"]
[Source "ChessBase"]
[SourceQuality "1"]
[TimeControl "40/6000+30:2400+30"]

{[%evp 17,77,17,59,42,71,67,89,95,85,82,74,25,44,33,42,58,62,0,50,0,6,8,5,33,30,22,43,0,106,0,54,-29,56,42,152,142,150,0,0,0,0,0,20,14,10,18,241,241,821,849,3073,2570,29984,29985,29984,1941,2034,1251,29996,29997,29997,29998]} 1. d4 {[%emt 0:00:11]} Nf6 {[%emt 0:00:18]} 2. c4 {[%emt 0:00:18]} c5 {[%emt 0:00:13]} 3. d5 {[%emt 0:00:21]} e6 {[%emt 0:00:10]} 4. Nc3 {[%emt 0:00:12]} exd5 {[%emt 0:00:21]} 5. cxd5 {[%emt 0:00:07]} d6 {[%emt 0:00:14]} 6. e4 {[%emt 0:00:17]} g6 {[%emt 0:00:12]} 7. f4 {[%emt 0:00:38]} Bg7 {[%emt 0:00:17]} 8. Bb5+ {[%emt 0:00:15]} Nfd7 {[%emt 0:00:12]} 9. a4 {[%emt 0:00:09]} a6 {[%emt 0:00:43]} 10. Bd3 {[%emt 0:02:59]} Qh4+ {[%emt 0:00:42]} 11. g3 {[%emt 0:02:07]} Qd8 {[%emt 0:00:11]} 12. Nf3 {[%emt 0:01:37] White is better.} O-O {[%emt 0:00:56]} (12... Bxc3+ $2 13. bxc3 O-O 14. O-O $18) 13. O-O {[%emt 0:02:26]} Nf6 {[%emt 0:04:15]} 14. f5 {[%emt 0:14:26]} (14. Kg2 $16) 14... Re8 {[%emt 0:05:55]} 15. Kg2 {[%emt 0:11:52]} (15. fxg6 {seems wilder.} hxg6 16. e5 dxe5 17. Ng5) 15... c4 {[%emt 0:04:47]} 16. Bc2 {[%emt 0:08:34]} Nbd7 {[%emt 0:02:47]} 17. h3 {[%emt 0:07:17]} (17. Bg5 $14) 17... Rb8 {[%emt 0:11:46]} (17... Nc5 $1 $11) 18. a5 {[%emt 0:04:01]} b5 {[%emt 0:05:46] Strongly threatening ...b4.} 19. axb6 {[%emt 0:00:11]} Qxb6 {[%emt 0:00:25]} 20. g4 {[%emt 0:02:46]} Nc5 {[%emt 0:09:00]} 21. Nd2 $36 {[%emt 0:01:39][%mdl 2048] White has some pressure.} Qc7 $1 {[%emt 0:07:54]} 22. Qf3 {[%emt 0:09:16]} g5 {[%emt 0:10:50]} (22... Rb4 $11 {remains equal.}) 23. Re1 {[%emt 0:08:51]} (23. Nxc4 $6 Ncxe4 24. Bxe4 Qxc4 $15) (23. h4 $1 $16 {[%cal Rh4g5]}) 23... Bb7 {[%emt 0:07:18]} (23... Rb4 $11) 24. Re2 {[%emt 0:05:48]} (24. Nxc4 $2 Nxd5 (24... Ncxe4 25. Nxe4 Qxc4 26. Bb3 $17) 25. Nxd5 (25. Bxg5 $2 Nb4 $19) 25... Bxd5 $17) (24. Qg3 $14) 24... Nfd7 {[%emt 0:06:03]} ({Black should try} 24... h6 $1 $11) 25. Nxc4 $14 {[%emt 0:05:44]} Nxe4 {[%emt 0:09:44]} 26. Rxe4 $16 {[%emt 0:00:29]} Bxc3 {[%emt 0:05:21]} 27. Bxg5 {[%emt 0:06:57]} (27. Qxc3 Bxd5 28. Nd2 Qb6 $11) (27. bxc3 $16 Nf6 28. Rxe8+ Rxe8 29. Ne3 (29. Bxg5 $2 Bxd5 $19) 29... Qxc3 30. Ra3) 27... Bxb2 $11 {[%emt 0:05:21]} 28. Rd1 {[%emt 0:00:23]} Rxe4 {[%emt 0:02:49]} 29. Qxe4 {[%emt 0:00:01]} Bf6 {[%emt 0:02:42]} 30. Bf4 {[%emt 0:01:51]} Rc8 $1 {[%emt 0:02:54]} 31. Ne3 {[%emt 0:00:01] [#] Black must now prevent g5.} (31. Bxd6 $2 {perishes.} Qxc4 32. Qxc4 Rxc4 $19) 31... Nb6 $2 {[%emt 0:01:05] This move loses the game for Black.} (31... Qc3 $11) 32. g5 $18 {[%emt 0:01:46]} Nc4 $2 {[%emt 0:01:20]} (32... Nxd5 33. Rxd5 Bxd5 34. Qxd5 Be5 35. Bxe5 dxe5) 33. Ng4 {[%emt 0:00:20]} ({Worse is} 33. gxf6 Nxe3+ 34. Bxe3 Qxc2+ 35. Qxc2 Rxc2+ 36. Kf3 Rc3 $11) 33... Bxg5 {[%emt 0:03:58]} 34. f6 {[%emt 0:01:21]} Kf8 {[%emt 0:00:29]} 35. Bxg5 {[%emt 0:00:09]} Ne5 {[%emt 0:00:25]} 36. Rd2 {[%emt 0:01:25]} (36. Bh6+ $142 Ke8 37. Ba4+ Kd8 38. Nxe5 (38. Qxh7 Qc4 $18) 38... dxe5 39. Qxh7 Qd6 40. Qxf7 Rc2+ 41. Bxc2) 36... Ng6 {[%emt 0:00:34]} 37. Re2 {[%emt 0:01:39]} Qc5 {[%emt 0:00:27] [#]} 38. Qe8+ $3 {[%emt 0:00:39][%mdl 512]} Rxe8 {[%emt 0:00:33]} 39. Bh6+ {[%emt 0:00:02] Weighted Error Value: White=0.25 (precise) /Black=0.72.  Loses game:     	---       	Black=1      Mistake:       	White=5     	Black=6      Inaccurate:     	White=2     	Black=2      OK:         	White=8     	Black=5      Best:        	White=4     	Black=2      Strong:       	---       	Black=2} 1-0

[Event "Fagernes Chess GM-Swiss 2024"]
[Site "Fagernes"]
[Date "2024.03.24"]
[Round "1.29"]
[White "Holand, Per Fredrik"]
[Black "Brynell, Stellan"]
[Result "0-1"]
[ECO "C27"]
[WhiteElo "2068"]
[BlackElo "2406"]
[Annotator "TA"]
[PlyCount "70"]
[EventDate "2024.03.25"]
[EventType "swiss"]
[EventCountry "NOR"]
[SourceTitle "playchess.com"]
[Source "ChessBase"]
[SourceQuality "1"]
[TimeControl "40/6000+30:2400+30"]

{[%evp 12,70,-10,-4,-8,-39,-33,-93,-53,-66,-34,-113,-89,-117,-123,-159,-154,-168,-99,-129,-77,-127,-63,-144,-150,-247,-281,-283,-270,-258,-265,-312,-164,-150,-146,-154,-171,-159,-160,-156,-139,-195,-188,-205,-190,-201,-205,-205,-205,-224,-229,-208,-218,-234,-234,-316,-119,-327,-316,-2163,-2139]} 1. e4 {[%emt 0:07:04]} e5 {[%emt 0:01:22]} 2. Bc4 {[%emt 0:00:21]} Nf6 {[%emt 0:00:38]} 3. Nc3 {[%emt 0:00:54]} Nxe4 {[%emt 0:04:15]} 4. Qh5 {[%emt 0:00:09]} Nd6 {[%emt 0:00:40]} 5. Bb3 {[%emt 0:02:16]} Be7 {[%emt 0:04:22]} 6. Nf3 {[%emt 0:02:02]} Nc6 {[%emt 0:02:27]} 7. Nxe5 {[%emt 0:01:56]} g6 {[%emt 0:14:41]} 8. Qe2 {[%emt 0:00:23]} (8. Nxc6 {simplifies} bxc6 9. Qd1 Nf5 10. O-O) 8... Nd4 {[%emt 0:03:49]} 9. Qe3 {[%emt 0:02:07]} ({White should play} 9. Qg4 $15 Nxb3 10. axb3) 9... Nxb3 {[%emt 0:01:43] Black is better.} (9... N6f5 {keeps more tension.} 10. Qd3 O-O 11. O-O d6) 10. axb3 {[%emt 0:04:33][%cal Oc3d5]} O-O {[%emt 0:09:01]} 11. f4 {[%emt 0:06:20]} (11. d4 $15) 11... b6 {[%emt 0:05:58]} 12. O-O {[%emt 0:00:35]} Bb7 {[%emt 0:00:43] Prevents Nd5} 13. d3 {[%emt 0:02:57]} Nf5 {[%emt 0:05:28][%cal Bd6f5,Bf5d4,Bd4e2][%mdl 32]} 14. Qh3 {[%emt 0:00:09]} d6 {[%emt 0:05:34]} (14... Bc5+ $19 15. Kh1 Nh4) 15. Nf3 {[%emt 0:00:22] [#]} Bf6 {[%emt 0:00:49]} (15... h5 $142 $1 16. Ra4 c5) 16. Ne4 {[%emt 0:00:24]} (16. g4 $142 Bd4+ 17. Nxd4 Nxd4 18. Ra4) 16... Bg7 {[%emt 0:00:16] This pair of bishops is nice.} ({Better is} 16... h5 $17 17. Nfg5 Qe7) 17. Nfg5 {[%emt 0:09:02]} (17. g4 $1 $15 Nd4 18. Nxd4 Bxd4+ 19. Be3) 17... h6 $17 {[%emt 0:00:58]} 18. g4 {[%emt 0:00:06]} (18. Nf3 $17 {was the only defense.}) 18... Nd4 $19 {[%emt 0:02:15]} 19. f5 {[%emt 0:09:21][%cal Oc1e3]} Ne2+ {[%emt 0:01:56]} ({Inferior is} 19... hxg5 20. Bxg5 Ne2+ 21. Kf2 $11) 20. Kf2 {[%emt 0:00:24]} Nxc1 {[%emt 0:00:34]} 21. f6 {[%emt 0:00:21]} Bxf6 {[%emt 0:07:39]} (21... hxg5 $142 22. fxg7 Kxg7 23. Raxc1 Bxe4 24. dxe4 Qf6+ 25. Kg2 Qxb2) 22. Qxh6 {[%emt 0:06:14][%csl Gg5][%cal Rh6h7]} Bxg5 {[%emt 0:00:40]} ({Not} 22... Bxb2 23. Qh7#) 23. Qxg5 {[%emt 0:02:17] [#]} Nxd3+ $1 {[%emt 0:06:47]} 24. cxd3 {[%emt 0:00:07]} Qxg5 {[%emt 0:01:05]} 25. Nxg5 {[%emt 0:00:07]} a5 {[%emt 0:00:24]} 26. Rfc1 {[%emt 0:01:19]} (26. Rfe1 $17 {might work better.}) 26... c5 {[%emt 0:00:42]} 27. Re1 {[%emt 0:00:21]} Rfe8 {[%emt 0:00:27]} 28. Ne4 {[%emt 0:00:08]} Bxe4 {[%emt 0:01:14]} 29. dxe4 {[%emt 0:00:07][%mdl 4096] Endgame. KRR-KRR} Re6 {[%emt 0:00:37]} 30. Kf3 {[%emt 0:03:41]} Rae8 {[%emt 0:00:32][%cal Od6d5]} 31. Rad1 {[%emt 0:00:13]} Rf6+ {[%emt 0:02:59]} 32. Ke3 {[%emt 0:00:33]} Re5 {[%emt 0:01:18]} 33. h4 {[%emt 0:03:30]} Kf8 $2 {[%emt 0:00:48]} (33... Rfe6 $19 {is more deadly.} 34. Kd3 d5) 34. g5 $2 {[%emt 0:01:08]} (34. Rd5 $17) 34... Rfe6 {[%emt 0:00:05]} 35. b4 $2 {[%emt 0:03:19]} (35. Kd3) 35... Rxe4+ {[%emt 0:01:47] Weighted Error Value: White=0.61/Black=0.29 (precise) .  Loses game:     	White=1     	---        Missed win:     	---       	Black=1      Mistake:       	White=7     	Black=4      Inaccurate:     	White=4     	Black=2      OK:         	White=3     	Black=14     Best:        	White=2     	Black=5} 0-1

[Event "Fagernes Chess GM-Swiss 2024"]
[Site "Fagernes"]
[Date "2024.03.24"]
[Round "1.30"]
[White "Ingebretsen, Jens E"]
[Black "Lilliehook, Victor"]
[Result "1-0"]
[ECO "D02"]
[WhiteElo "2402"]
[BlackElo "2060"]
[Annotator "RC"]
[PlyCount "51"]
[EventDate "2024.03.25"]
[EventType "swiss"]
[EventCountry "NOR"]
[SourceTitle "playchess.com"]
[Source "ChessBase"]
[SourceQuality "1"]
[TimeControl "40/6000+30:2400+30"]

1. d4 {[%emt 0:00:24]} d5 {[%emt 0:00:32]} 2. Nf3 {[%emt 0:00:16]} Nf6 {[%emt 0:00:07]} 3. g3 {[%emt 0:00:36]} e6 {[%emt 0:00:30]} 4. Bg2 {[%emt 0:00:07]} c6 {[%emt 0:02:25]} 5. O-O {[%emt 0:00:31]} Nbd7 {[%emt 0:06:34]} 6. b3 {[%emt 0:01:01]} Bd6 {[%emt 0:02:18]} 7. Bb2 {[%emt 0:01:57]} O-O {[%emt 0:01:19]} 8. c4 {[%emt 0:00:31]} Re8 {[%emt 0:06:40]} 9. Nbd2 {[%emt 0:02:02]} b6 {[%emt 0:07:30]} 10. Qc2 {[%emt 0:01:13]} Bb7 {[%emt 0:01:33]} 11. e4 {[%emt 0:02:14]} dxe4 {[%emt 0:01:06]} 12. Ng5 {[%emt 0:03:49]} e5 {[%emt 0:06:55]} 13. Ndxe4 {[%emt 0:01:29]} Nxe4 {[%emt 0:01:33]} 14. Nxe4 {[%emt 0:00:03]} Bc7 {[%emt 0:02:45]} 15. dxe5 {[%emt 0:01:50]} Bxe5 {[%emt 0:06:19]} 16. Rad1 {[%emt 0:03:15]} Qc7 {[%emt 0:05:59]} 17. Bxe5 {[%emt 0:04:13]} Rxe5 {[%emt 0:04:44]} 18. f4 {[%emt 0:03:56]} Re7 {[%emt 0:01:37]} 19. Nd6 {[%emt 0:02:49]} Nf6 {[%emt 0:02:45]} 20. Nxb7 {[%emt 0:00:52]} Qxb7 {[%emt 0:00:01]} 21. Rd6 {[%emt 0:00:10]} Rc8 {[%emt 0:03:10]} 22. Rfd1 {[%emt 0:02:01]} Rd7 {[%emt 0:03:28]} 23. Qf5 {[%emt 0:03:18]} Rxd6 {[%emt 0:12:17]} 24. Rxd6 {[%emt 0:00:17]} Re8 {[%emt 0:07:05]} 25. Bxc6 {[%emt 0:01:34]} Qe7 {[%emt 0:01:57]} 26. Qe5 {[%emt 0:00:56]} 1-0

[Event "Fagernes Chess GM-Swiss 2024"]
[Site "Fagernes"]
[Date "2024.03.24"]
[Round "1.31"]
[White "Evenshaug, Amadeus Hestvik"]
[Black "Narva, Mai"]
[Result "0-1"]
[ECO "B75"]
[WhiteElo "2035"]
[BlackElo "2399"]
[Annotator "TA"]
[PlyCount "60"]
[EventDate "2024.03.25"]
[EventType "swiss"]
[EventCountry "NOR"]
[SourceTitle "playchess.com"]
[Source "ChessBase"]
[SourceQuality "1"]
[TimeControl "40/6000+30:2400+30"]

{[%evp 14,60,56,54,50,38,25,39,30,18,33,0,18,13,29,35,71,76,114,15,34,-34,-32,-85,-95,-110,-41,-178,-177,-270,-265,-273,-270,-335,-347,-395,-402,-412,-422,-383,-279,-297,-287,-293,-293,-348,-322,-617,-606]} 1. e4 {[%emt 0:00:03]} c5 {[%emt 0:00:09]} 2. Nf3 {[%emt 0:00:20]} d6 {[%emt 0:00:18]} 3. d4 {[%emt 0:00:27]} cxd4 {[%emt 0:00:07]} 4. Nxd4 {[%emt 0:00:05]} Nf6 {[%emt 0:00:17]} 5. Nc3 {[%emt 0:00:14]} g6 {[%emt 0:00:29]} 6. Be3 {[%emt 0:00:42]} Bg7 {[%emt 0:00:12]} 7. f3 {[%emt 0:00:17]} a6 {[%emt 0:00:16]} 8. Qd2 {[%emt 0:00:25]} h5 {[%emt 0:00:18]} 9. O-O-O {[%emt 0:00:52]} b5 {[%emt 0:00:17]} 10. Kb1 {[%emt 0:02:26]} Bb7 {[%emt 0:00:22] Against Nd5. White is slightly better.} 11. Bd3 {[%emt 0:05:56][%cal Oe4e5] next e5! is good for White.} Nbd7 {[%emt 0:00:20]} 12. h3 {[%emt 0:04:53]} Rb8 {[%emt 0:03:23]} 13. Rhe1 {[%emt 0:09:17]} b4 {[%emt 0:11:24]} 14. Nce2 {[%emt 0:10:03][%cal Oe2f4]} O-O {[%emt 0:18:43]} 15. g4 {[%emt 0:02:49]} (15. Qxb4 Bxe4 16. Qd2 Bxd3 17. cxd3 Nd5 $15) 15... Ne5 {[%emt 0:05:24]} 16. gxh5 {[%emt 0:04:35]} (16. Qxb4 $2 Bxe4 17. Qa3 Nd5 $19 (17... Bxf3 $2 18. Nxf3 Nxf3 19. Rf1 $19) (17... Bxf3 $2 18. Nxf3 Nxf3 19. Rf1 $19)) (16. Bh6 $16) 16... Nxh5 $11 {[%emt 0:00:41]} 17. f4 {[%emt 0:22:57]} (17. Rg1 $14) 17... Nxd3 $15 {[%emt 0:04:31]} 18. Qxd3 {[%emt 0:01:47] [#]} (18. cxd3 $15 e5 19. Nf3) 18... e5 $1 $17 {[%emt 0:06:22]} 19. Nf3 {[%emt 0:01:26]} exf4 {[%emt 0:06:18]} ({Black should try} 19... Rc8 $17 {White must now prevent ...exf4.} 20. fxe5 dxe5) 20. Bc1 {[%emt 0:15:03] Loses the game.} (20. Nxf4 $15 Qf6 21. e5 dxe5 22. Nxh5 Qxf3 (22... gxh5 23. Ng5 $15) 23. Nxg7) 20... Qf6 {[%emt 0:03:02]} 21. Qxd6 {[%emt 0:10:00]} (21. h4 $142) 21... Bxe4 $19 {[%emt 0:02:44]} 22. Qxf6 {[%emt 0:00:31]} Bxf6 {[%emt 0:00:38]} (22... Nxf6 23. Ng5 $17) 23. Nfd4 {[%emt 0:04:46] White is weak on the light squares} Rfe8 {[%emt 0:03:31]} ({Weaker is} 23... g5 24. Nxf4 Nxf4 25. Bxf4 Bxc2+ (25... gxf4 26. Rxe4 Rfd8 27. Rg1+ Kh7 28. Rxf4 $16) 26. Kxc2 $11) 24. Rf1 {[%emt 0:02:58]} Bg2 {[%emt 0:13:43] This pair of bishops is nice.} 25. Rf2 {[%emt 0:02:36]} f3 {[%emt 0:02:55]} ({Less strong is} 25... Bxh3 26. Nxf4 Nxf4 27. Rxf4 $19) 26. Ng1 {[%emt 0:03:31]} Bh4 {[%emt 0:00:58]} 27. Rxf3 {[%emt 0:00:11]} Bxf3 {[%emt 0:00:06]} 28. Ngxf3 {[%emt 0:00:08]} Bf6 {[%emt 0:00:18]} 29. Nc6 {[%emt 0:01:50]} Rb6 {[%emt 0:00:44]} 30. Rd6 {[%emt 0:00:46] [#]} (30. Na5) 30... Kg7 {[%emt 0:01:13] Weighted Error Value: White=0.48/Black=0.16 (very precise) .  Mistake:       	White=6     	Black=1      Inaccurate:     	White=1     	Black=2      OK:         	White=7     	Black=10     Best:        	White=1     	Black=1      Strong:       	---       	Black=1} 0-1

[Event "Fagernes Chess GM-Swiss 2024"]
[Site "Fagernes"]
[Date "2024.03.24"]
[Round "1.32"]
[White "Sidhant, Mohapatra"]
[Black "Shivika Rohilla"]
[Result "1/2-1/2"]
[ECO "A46"]
[WhiteElo "2379"]
[BlackElo "2003"]
[Annotator "RC"]
[PlyCount "70"]
[EventDate "2024.03.25"]
[EventType "swiss"]
[EventCountry "NOR"]
[SourceTitle "playchess.com"]
[Source "ChessBase"]
[SourceQuality "1"]
[TimeControl "40/6000+30:2400+30"]

1. Nf3 {[%emt 0:00:16]} Nf6 {[%emt 0:02:24]} 2. d4 {[%emt 0:00:25]} e6 {[%emt 0:00:08]} 3. Bf4 {[%emt 0:00:27]} d5 {[%emt 0:00:08]} 4. e3 {[%emt 0:00:09]} Bd6 {[%emt 0:00:07]} 5. Nbd2 {[%emt 0:00:16]} c5 {[%emt 0:00:21]} 6. Bb5+ {[%emt 0:00:30]} Nc6 {[%emt 0:00:39]} 7. Bg3 {[%emt 0:00:18]} O-O {[%emt 0:06:13]} 8. c3 {[%emt 0:00:07]} Ne7 {[%emt 0:13:18]} 9. Bd3 {[%emt 0:00:06]} Qc7 {[%emt 0:00:43]} 10. Qe2 {[%emt 0:03:19]} Re8 {[%emt 0:06:00]} 11. Ne5 {[%emt 0:01:09]} Nf5 {[%emt 0:16:42]} 12. f4 {[%emt 0:01:10]} Bf8 {[%emt 0:01:08]} 13. Qf3 {[%emt 0:03:03]} c4 {[%emt 0:01:37]} 14. Bc2 {[%emt 0:00:34]} b5 {[%emt 0:00:21]} 15. Bf2 {[%emt 0:01:39]} Bb7 {[%emt 0:02:46]} 16. g4 {[%emt 0:00:54]} Nd6 {[%emt 0:00:16]} 17. g5 {[%emt 0:00:04]} Nfe4 {[%emt 0:00:50]} 18. Nxe4 {[%emt 0:00:05]} dxe4 {[%emt 0:01:41]} 19. Qe2 {[%emt 0:00:30]} Bd5 {[%emt 0:02:14]} 20. O-O {[%emt 0:02:04]} Reb8 {[%emt 0:03:22]} 21. Be1 {[%emt 0:00:08]} Nf5 {[%emt 0:02:26]} 22. a3 {[%emt 0:01:04]} a5 {[%emt 0:00:45]} 23. Bd2 {[%emt 0:00:49]} Ra6 {[%emt 0:07:24]} 24. Qg2 {[%emt 0:02:08]} Qb7 {[%emt 0:00:19]} 25. h4 {[%emt 0:01:46]} Rb6 {[%emt 0:01:37]} 26. h5 {[%emt 0:01:10]} Be7 {[%emt 0:11:48]} 27. Kh2 {[%emt 0:03:34]} b4 {[%emt 0:02:25]} 28. Bc1 {[%emt 0:00:08]} Bf8 {[%emt 0:01:20]} 29. Kh3 {[%emt 0:00:15]} Bd6 {[%emt 0:03:25]} 30. Ng4 {[%emt 0:00:29]} Be7 {[%emt 0:00:46]} 31. Rg1 {[%emt 0:01:23]} Kh8 {[%emt 0:03:45]} 32. Ne5 {[%emt 0:00:10]} Bd6 {[%emt 0:02:22]} 33. Ng4 {[%emt 0:00:06]} Be7 {[%emt 0:00:07]} 34. Ne5 {[%emt 0:00:04]} Bd6 {[%emt 0:00:05]} 35. Ng4 {[%emt 0:00:05]} Be7 {[%emt 0:00:05]} 1/2-1/2

[Event "Fagernes Chess GM-Swiss 2024"]
[Site "Fagernes"]
[Date "2024.03.24"]
[Round "1.33"]
[White "Anishka Vikram"]
[Black "Audi Ameya"]
[Result "1/2-1/2"]
[ECO "A41"]
[WhiteElo "1995"]
[BlackElo "2378"]
[Annotator "RC"]
[PlyCount "183"]
[EventDate "2024.03.25"]
[EventType "swiss"]
[EventCountry "NOR"]
[SourceTitle "playchess.com"]
[Source "ChessBase"]
[SourceQuality "1"]
[TimeControl "40/6000+30:2400+30"]

1. d4 {[%emt 0:00:11]} d6 {[%emt 0:00:18]} 2. c4 {[%emt 0:00:14]} e5 {[%emt 0:00:05]} 3. Nc3 {[%emt 0:01:19]} exd4 {[%emt 0:00:12]} 4. Qxd4 {[%emt 0:00:12]} Nc6 {[%emt 0:00:06]} 5. Qd1 {[%emt 0:09:31]} g6 {[%emt 0:01:02]} 6. Nf3 {[%emt 0:02:44]} Bg7 {[%emt 0:00:31]} 7. e3 {[%emt 0:01:13]} Bxc3+ {[%emt 0:11:56]} 8. bxc3 {[%emt 0:00:16]} Nf6 {[%emt 0:00:43]} 9. Be2 {[%emt 0:16:17]} O-O {[%emt 0:03:04]} 10. O-O {[%emt 0:00:19]} Be6 {[%emt 0:12:52]} 11. Nd4 {[%emt 0:03:55]} Na5 {[%emt 0:02:53]} 12. Qa4 {[%emt 0:10:11]} b6 {[%emt 0:01:59]} 13. Bd3 {[%emt 0:12:04]} Qd7 {[%emt 0:07:55]} 14. Qb5 {[%emt 0:08:26]} Qxb5 {[%emt 0:23:39]} 15. cxb5 {[%emt 0:00:24]} Bc4 {[%emt 0:00:02]} 16. Rd1 {[%emt 0:02:32]} a6 {[%emt 0:01:14]} 17. bxa6 {[%emt 0:06:58]} Bxd3 {[%emt 0:03:58]} 18. Rxd3 {[%emt 0:00:13]} Rxa6 {[%emt 0:00:03]} 19. Nb5 {[%emt 0:05:02]} Rc8 {[%emt 0:01:09]} 20. Bd2 {[%emt 0:03:34]} Nb3 {[%emt 0:01:50]} 21. Rd1 {[%emt 0:01:52]} Rxa2 {[%emt 0:01:55]} 22. Be1 {[%emt 0:00:26]} d5 {[%emt 0:09:05]} 23. f3 {[%emt 0:01:35]} c6 {[%emt 0:01:34]} 24. Nd6 {[%emt 0:05:36]} Rd8 {[%emt 0:06:31]} 25. Ne4 {[%emt 0:01:17]} Nxe4 {[%emt 0:01:47]} 26. fxe4 {[%emt 0:00:08]} Nc5 {[%emt 0:01:06]} 27. Rd4 {[%emt 0:00:25]} Re8 {[%emt 0:02:23]} 28. exd5 {[%emt 0:00:40]} cxd5 {[%emt 0:00:04]} 29. Rxd5 {[%emt 0:08:34]} Rxe3 {[%emt 0:00:06]} 30. Bd2 {[%emt 0:01:43]} Re8 {[%emt 0:06:00]} 31. Bh6 {[%emt 0:02:59]} f5 {[%emt 0:01:04]} 32. Rd8 {[%emt 0:02:04]} Kf7 {[%emt 0:00:59]} 33. Rxe8 {[%emt 0:02:08]} Kxe8 {[%emt 0:00:03]} 34. Be3 {[%emt 0:01:42]} Rc2 {[%emt 0:01:38]} 35. Bd4 {[%emt 0:00:30]} h5 {[%emt 0:03:47]} 36. h4 {[%emt 0:00:41]} Kf7 {[%emt 0:02:02]} 37. Rb1 {[%emt 0:00:20]} Nd7 {[%emt 0:01:10]} 38. Rb3 {[%emt 0:00:40]} Ke6 {[%emt 0:01:56]} 39. Bxb6 {[%emt 0:00:08]} Ne5 {[%emt 0:00:05]} 40. Bd4 {[%emt 0:00:13]} Ng4 {[%emt 0:00:40]} 41. g3 {[%emt 0:40:35]} Kd5 {[%emt 0:40:22]} 42. Rb1 {[%emt 0:01:01]} Ke4 {[%emt 0:01:01]} 43. Rf1 {[%emt 0:00:18]} Rd2 {[%emt 0:00:00]} 44. Rf4+ {[%emt 0:00:00]} Kd3 {[%emt 0:00:00]} 45. Rf3+ {[%emt 0:00:00]} Ke2 {[%emt 0:00:00]} 46. Kg2 {[%emt 0:00:00]} Rd1 {[%emt 0:00:00]} 47. Bb6 {[%emt 0:00:00]} Rc1 {[%emt 0:00:00]} 48. Bd4 {[%emt 0:00:00]} Rc2 {[%emt 0:00:00]} 49. Ba7 {[%emt 0:00:00]} Ra2 {[%emt 0:00:00]} 50. Bd4 {[%emt 0:00:00]} Ra4 {[%emt 0:00:00]} 51. Bb6 {[%emt 0:00:00]} Re4 {[%emt 0:00:00]} 52. Bd4 {[%emt 0:00:00]} Re8 {[%emt 0:00:00]} 53. Rf4 {[%emt 0:00:00]} Re4 {[%emt 0:00:00]} 54. Rf3 {[%emt 0:00:00]} Ke1 {[%emt 0:00:00]} 55. Rf1+ {[%emt 0:00:00]} Kd2 {[%emt 0:00:00]} 56. Ra1 {[%emt 0:00:00]} Re2+ {[%emt 0:00:00]} 57. Kg1 {[%emt 0:00:00]} Kd3 {[%emt 0:00:00]} 58. Ra6 {[%emt 0:00:00]} Rc2 {[%emt 0:00:00]} 59. Re6 {[%emt 0:00:00]} Ra2 {[%emt 0:00:00]} 60. Re7 {[%emt 0:00:00]} Nh2 {[%emt 0:00:00]} 61. Re3+ {[%emt 0:00:00]} Kc4 {[%emt 0:00:00]} 62. Re6 {[%emt 0:00:00]} Kd5 {[%emt 0:00:00]} 63. Re3 {[%emt 0:00:00]} Rd2 {[%emt 0:00:00]} 64. Re5+ {[%emt 0:00:00]} Kd6 {[%emt 0:00:00]} 65. Re3 {[%emt 0:00:00]} Kd7 {[%emt 0:00:00]} 66. Bc5 {[%emt 0:00:08]} Ng4 {[%emt 0:00:00]} 67. Re7+ {[%emt 0:00:46]} Kc6 {[%emt 0:00:53]} 68. Bd4 {[%emt 0:00:07]} Kd5 {[%emt 0:00:08]} 69. Re8 {[%emt 0:00:30]} Ra2 {[%emt 0:01:10]} 70. Re7 {[%emt 0:00:16]} Nh2 {[%emt 0:02:59]} 71. Re5+ {[%emt 0:00:15]} Kd6 {[%emt 0:00:22]} 72. Re3 {[%emt 0:00:17]} Rd2 {[%emt 0:00:03]} 73. Be5+ {[%emt 0:07:50]} Kd5 {[%emt 0:00:03]} 74. Bd4 {[%emt 0:00:22]} Kc4 {[%emt 0:00:34]} 75. Re6 {[%emt 0:00:21]} Ng4 {[%emt 0:00:30]} 76. Re7 {[%emt 0:00:32]} Kd3 {[%emt 0:00:18]} 77. Re6 {[%emt 0:00:28]} Ra2 {[%emt 0:00:25]} 78. Re7 {[%emt 0:00:23]} Ra6 {[%emt 0:00:15]} 79. Kg2 {[%emt 0:00:30]} Ra2+ {[%emt 0:03:13]} 80. Kg1 {[%emt 0:00:05]} Nh2 {[%emt 0:00:13]} 81. Re3+ {[%emt 0:00:11]} Kc4 {[%emt 0:00:03]} 82. Re6 {[%emt 0:00:42]} Nf3+ {[%emt 0:00:31]} 83. Kf1 {[%emt 0:00:10]} Nd2+ {[%emt 0:00:05]} 84. Kg1 {[%emt 0:01:12]} Ne4 {[%emt 0:00:12]} 85. Rxg6 {[%emt 0:01:05]} Kd3 {[%emt 0:00:05]} 86. Rg7 {[%emt 0:01:01]} Ke2 {[%emt 0:02:55]} 87. Kg2 {[%emt 0:00:10]} Nd2 {[%emt 0:00:30]} 88. Re7+ {[%emt 0:00:25]} Kd3 {[%emt 0:00:10]} 89. Rg7 {[%emt 0:00:24]} Ke4 {[%emt 0:00:29]} 90. Re7+ {[%emt 0:00:15]} Kd3 {[%emt 0:00:06]} 91. Rg7 {[%emt 0:01:09]} Ke4 {[%emt 0:00:05]} 92. Re7+ 1/2-1/2